bitfinex/quotes_ETHUSD_20220115
["timestamp","ask_amount","ask_price","bid_price","bid_amount"]
[1642283111914,0.0022737,3332.3,3331.6,0.00170527]
[1642283112112,0.0022737,3332.3,3331.7,1.5157084]
[1642283112314,0.00170527,3332.2,3331.7,1.4657084]
[1642283112521,0.00170527,3332.2,3331.6,0.07816317]
[1642283112713,0.00113685,3332.1,3331.6,0.07816317]
[1642283112916,0.00113685,3332.1,3331.7,0.00113684]
[1642283113516,0.00113685,3332.1,3331.7,0.07759474]
[1642283114416,0.00113685,3332.1,3331.7,0.67732774]
[1642283114617,0.00113685,3332.1,3331.8,3.40316525]
[1642283114818,0.009093,3332.7,3332.6,1.37138067]
[1642283115025,0.011765,3333.1,3332.6,1.37138067]
[1642283115273,3.34235494,3334.7,3332.7,2.14013722]
[1642283115274,0.011076,3333.4,3332.7,2.14013722]
[1642283115459,0.01271711,3334.4,3332.7,2.14013722]
[1642283115460,0.017398,3333.8,3332.8,0.90237348]
[1642283115661,0.00795793,3333.5,3332.8,0.0764579]
[1642283115860,0.00795793,3333.5,3332.8,0.4364579]
[1642283116059,0.00738951,3333.4,3332.8,0.36]
[1642283116262,0.00738951,3333.4,3333.1,1.35517639]
[1642283116459,0.00682108,3333.3,3333.2,0.91145494]
[1642283116658,0.00682108,3333.3,3333.2,0.86145494]
[1642283116858,0.00909478,3333.3,3333.2,0.86145494]
[1642283117459,1.72290988,3332.9,3332.8,0.36]
[1642283117664,0.77175677,3332.9,3332.8,2.68772692]
[1642283117862,0.77630416,3332.9,3332.8,2.68772692]
[1642283118559,0.77630416,3332.9,3332.8,1.2748326]
[1642283119008,0.77630416,3332.9,3332.8,0.9148326]
[1642283119205,0.89630416,3332.9,3332.8,0.9148326]
[1642283119406,0.77630416,3332.9,3332.0,0.36]
[1642283119608,0.77630416,3332.9,3332.4,1.12042795]
[1642283119808,0.00397897,3332.8,3332.4,1.12042795]
[1642283120212,0.00341054,3332.7,3332.4,1.48042795]
[1642283120607,0.00284212,3332.6,3332.4,1.48042795]
[1642283120806,0.00284212,3332.6,3332.5,9.38690151]
[1642283121008,0.77175677,3332.9,3332.5,9.38690151]
[1642283121206,0.65132491,3332.9,3332.5,9.38690151]
[1642283121508,0.00397897,3332.8,3332.5,0.83690151]
[1642283121809,0.00341054,3332.7,3332.5,0.83690151]
[1642283122207,0.00284212,3332.6,3332.5,0.83690151]
[1642283122877,0.13990112,3332.6,3331.9,0.00113684]
[1642283123066,0.03821091,3332.1,3331.9,0.00113684]
[1642283123267,0.03821091,3332.1,3331.6,0.00284212]
[1642283124165,0.03821091,3332.1,3331.8,1.52213599]
[1642283124365,0.016214,3332.2,3331.8,1.52213599]
[1642283124568,0.016214,3332.2,3331.9,0.00113685]
[1642283125165,0.12227369,3332.5,3331.9,0.00113685]
[1642283125376,0.12227369,3332.5,3331.8,1.47327284]
[1642283125568,0.00284212,3332.4,3331.8,1.42327284]
[1642283125965,0.0022737,3332.3,3331.8,1.42327284]
[1642283126366,0.00170527,3332.2,3331.7,0.70573629]
[1642283126810,0.00113685,3332.1,3331.7,0.70573629]
[1642283127014,0.131172,3332.0,3331.7,0.70573629]
[1642283127214,0.017061,3331.8,3331.7,0.70573629]
[1642283127412,1.532476,3331.2,3330.9,0.36]
[1642283127615,0.017061,3331.8,3330.9,0.36]
[1642283127616,0.009093,3331.5,3331.3,0.03167453]
[1642283127813,2.11720887,3331.6,3331.3,0.03167453]
[1642283128018,2.11720887,3331.6,3330.9,0.36]
[1642283128019,2.11720887,3331.6,3331.4,0.00284211]
[1642283128412,2.11720887,3331.6,3331.3,0.8015728]
[1642283128612,2.11720887,3331.6,3331.4,1.31324448]
[1642283128814,1.11720887,3331.6,3331.4,1.31324448]
[1642283129012,1.11720887,3331.6,3331.5,0.00227369]
[1642283131460,1.11720887,3331.6,3331.5,4.60227369]
[1642283132459,1.01720887,3331.6,3331.5,13.20227369]
[1642283132660,1.01720887,3331.6,3331.5,0.00227369]
[1642283133558,1.01720887,3331.6,3331.5,3.00227369]
[1642283135307,1.01720887,3331.6,3331.0,0.52686971]
[1642283135308,0.00525003,3331.2,3331.0,0.52686971]
[1642283135713,0.00525003,3331.2,3331.1,10.3841264]
[1642283135910,0.00525003,3331.2,3331.1,10.57569832]
[1642283137862,0.00525003,3331.2,3331.1,10.63182495]
[1642283140262,0.00525003,3331.2,3331.1,1.53182495]
[1642283142110,0.00525003,3331.2,3331.1,0.77684195]
[1642283142311,0.00525003,3331.2,3331.1,4.42684195]
[1642283142709,0.00525003,3331.2,3331.1,3.77684195]
[1642283143310,0.00525003,3331.2,3331.1,8.55400085]
[1642283143709,0.00525003,3331.2,3331.1,5.55400085]
[1642283147865,0.00525003,3331.2,3331.1,1.60400085]
[1642283149314,0.00525003,3331.2,3331.1,5.90400085]
[1642283149613,0.00525003,3331.2,3331.1,1.55400085]
[1642283149813,0.9815519,3331.6,3331.1,1.55400085]
[1642283150215,0.00227369,3331.5,3331.1,1.55400085]
[1642283150613,0.00170527,3331.4,3331.1,1.55400085]
[1642283151016,0.00113684,3331.3,3331.1,1.55400085]
[1642283153863,0.00113684,3331.3,3331.1,0.72684195]
[1642283154070,0.01117684,3331.3,3331.2,0.4791434]
[1642283154263,5.31117684,3331.3,3331.2,0.72301766]
[1642283154463,7.22273826,3331.3,3331.2,0.72301766]
[1642283154663,5.31117684,3331.3,3331.2,0.72301766]
[1642283154864,7.29127566,3331.3,3331.2,0.4791434]
[1642283155262,7.96226329,3331.3,3331.2,0.4791434]
[1642283156063,7.84226329,3331.3,3331.2,0.4791434]
[1642283156263,1.87127566,3331.3,3331.2,0.4791434]
[1642283156517,0.01117684,3331.3,3331.2,0.4791434]
[1642283156916,0.00113684,3331.3,3331.2,0.4791434]
[1642283157320,0.7483613,3331.3,3331.2,0.4791434]
[1642283157718,0.7593843,3331.3,3331.2,0.4791434]
[1642283158118,4.2593843,3331.3,3331.2,0.4791434]
[1642283158321,0.7593843,3331.3,3331.2,0.4791434]
[1642283158517,0.7093843,3331.3,3331.2,0.4791434]
[1642283159119,0.7093843,3331.3,3331.0,0.04654779]
[1642283159520,0.7093843,3331.3,3331.1,0.00113684]
[1642283160276,0.011023,3331.3,3331.1,0.00113684]
[1642283161974,15.27,3331.2,3331.1,0.00113684]
[1642283162766,0.82941489,3331.0,3330.1,0.1]
[1642283162966,0.66963807,3330.4,3330.1,0.1]
[1642283163166,0.012014,3330.3,3330.2,0.00511581]
[1642283163368,7.4,3330.2,3329.6,0.004546]
[1642283163578,7.4,3330.2,3328.9,2.2815465]
[1642283163579,0.03508955,3329.6,3328.9,1.6812208]
[1642283164213,1.30648482,3329.5,3328.9,1.6812208]
[1642283164523,1.30648482,3329.5,3327.9,0.36]
[1642283164524,7.35,3328.9,3327.5,0.09911887]
[1642283164718,2.0080396,3328.8,3328.1,0.6]
[1642283164916,0.011924,3328.4,3328.1,0.6]
[1642283165123,3.9,3328.1,3327.7,0.01421059]
[1642283165315,0.02357521,3328.0,3327.7,0.01421059]
[1642283165515,0.02357521,3328.0,3326.9,2.00520139]
[1642283165516,2.76272433,3328.0,3326.9,2.00520139]
[1642283165716,2.76272433,3328.0,3326.1,0.414546]
[1642283165717,1.36409176,3327.5,3326.4,0.1561876]
[1642283165914,1.36409176,3327.5,3327.0,0.00341055]
[1642283166115,0.00170527,3327.9,3327.0,0.00341055]
[1642283166312,0.00170527,3327.9,3327.1,0.11615029]
[1642283166513,0.00113684,3327.8,3326.5,0.0764579]
[1642283166716,0.00113684,3327.8,3327.2,0.07282399]
[1642283166915,0.00284211,3328.1,3326.6,0.00568424]
[1642283167121,0.00284211,3328.1,3327.3,0.7082335]
[1642283167314,0.011924,3328.4,3327.3,0.7082335]
[1642283167315,0.00227369,3328.0,3327.3,2.13581174]
[1642283167515,0.00227369,3328.0,3327.4,0.00113685]
[1642283167776,0.00397896,3328.3,3327.4,0.00113685]
[1642283168172,0.00341054,3328.2,3327.4,2.00113685]
[1642283168370,0.03049526,3327.8,3327.5,0.0764579]
[1642283168868,9.526e-05,3327.8,3327.5,0.0764579]
[1642283169067,9.526e-05,3327.8,3327.4,0.00113685]
[1642283169267,0.01581759,3327.7,3327.4,0.00113685]
[1642283169672,9.526e-05,3327.8,3327.5,5.85148]
[1642283169868,9.526e-05,3327.8,3327.4,0.00113685]
[1642283170466,9.526e-05,3327.8,3327.4,0.07759475]
[1642283171266,9.526e-05,3327.8,3327.5,1.46485282]
[1642283171714,9.526e-05,3327.8,3327.6,0.0764579]
[1642283171912,9.526e-05,3327.8,3327.6,0.6769452]
[1642283172417,9.526e-05,3327.8,3327.7,0.0764579]
[1642283172812,0.0012321,3327.8,3327.7,0.0764579]
[1642283173012,0.0012321,3327.8,3327.6,0.6004873]
[1642283173213,0.00113684,3327.8,3327.6,0.64591239]
[1642283173819,3.684e-05,3327.8,3327.7,21.7743703]
[1642283174014,3.684e-05,3327.8,3327.7,27.4379282]
[1642283174213,3.684e-05,3329.3,3327.8,17.15]
[1642283174514,3.684e-05,3329.3,3328.3,0.7504898]
[1642283174515,0.00795793,3329.2,3328.3,0.7504898]
[1642283174713,0.00795793,3329.2,3328.4,0.36]
[1642283174917,0.00738951,3329.1,3328.7,1.34606679]
[1642283175364,0.00682108,3329.0,3328.7,1.34606679]
[1642283175566,0.00682108,3329.0,3328.8,0.75572528]
[1642283175764,3.684e-05,3329.3,3328.8,1.18872528]
[1642283175765,0.00625266,3328.9,3328.8,1.18872528]
[1642283175965,0.0763895,3329.6,3328.8,1.18872528]
[1642283176364,0.00170527,3329.2,3328.8,1.18872528]
[1642283176564,0.00170527,3329.2,3328.9,0.7504278]
[1642283176763,0.00113685,3329.1,3328.9,0.7504278]
[1642283177163,0.00568423,3329.9,3328.9,0.7504278]
[1642283177365,0.1201,3329.8,3328.9,0.7504278]
[1642283177570,0.12521581,3329.8,3328.9,0.7504278]
[1642283177764,0.00454739,3329.7,3328.9,0.7504278]
[1642283178166,0.00397896,3329.6,3328.9,0.7504278]
[1642283178464,0.00341054,3329.5,3329.0,0.04214677]
[1642283178865,0.00284212,3329.4,3329.0,0.04214677]
[1642283179312,0.00227369,3329.3,3329.0,0.04214677]
[1642283179515,0.00227369,3329.3,3329.1,0.433]
[1642283179715,0.00625266,3330.0,3329.1,0.433]
[1642283180118,0.00568423,3329.9,3329.1,0.433]
[1642283180516,0.00511581,3329.8,3329.2,0.75028]
[1642283180717,0.00511581,3329.8,3329.3,2.68927047]
[1642283180919,0.00454739,3329.7,3329.3,2.68927047]
[1642283181418,1.34894481,3330.8,3329.3,2.68927047]
[1642283181419,0.00397896,3329.6,3329.3,2.68927047]
[1642283181817,0.00341054,3329.5,3329.3,2.68927047]
[1642283182218,0.00284212,3329.4,3329.3,2.68927047]
[1642283182622,0.00284212,3329.4,3329.3,3.43951197]
[1642283182864,0.00284212,3329.4,3329.3,9.23951197]
[1642283183266,0.00284212,3329.4,3329.3,3.43951197]
[1642283184865,0.00284212,3329.4,3329.3,17.53951197]
[1642283185466,0.00284212,3329.4,3329.3,6.43951197]
[1642283185667,0.009093,3330.3,3329.5,0.75022]
[1642283185865,0.009093,3330.3,3329.7,0.7502147]
[1642283186065,0.00454739,3330.2,3329.7,0.7502147]
[1642283186281,0.00055084,3330.2,3329.7,0.7502147]
[1642283186512,0.07974384,3331.0,3329.8,0.00172286]
[1642283186712,0.07974384,3331.0,3330.5,1.22422248]
[1642283186912,0.00397896,3330.9,3329.8,3.9616737]
[1642283187112,0.1201,3330.8,3329.8,3.9616737]
[1642283187314,0.12351054,3330.8,3330.0,0.72442762]
[1642283187511,0.00284211,3330.7,3330.0,0.72442762]
[1642283188020,0.00227369,3330.6,3330.0,0.72442762]
[1642283188415,1.47910021,3330.7,3330.0,0.72442762]
[1642283188416,0.00170527,3330.5,3330.0,0.72442762]
[1642283188815,0.00113684,3330.4,3330.0,0.72442762]
[1642283189517,0.03015538,3330.3,3330.0,0.72442762]
[1642283189715,0.01000031,3330.3,3330.0,0.72442762]
[1642283189915,0.00113684,3330.4,3330.0,0.72442762]
[1642283190667,0.1201,3330.3,3330.0,0.72442762]
[1642283190866,0.00113684,3330.4,3330.0,0.72442762]
[1642283191863,0.00113684,3330.4,3329.9,0.00170528]
[1642283192075,0.02798471,3329.9,3327.8,5.5273]
[1642283192266,0.004546,3330.1,3327.1,0.437546]
[1642283192267,0.0127557,3328.3,3327.1,0.437546]
[1642283192465,0.03094591,3328.8,3327.2,0.06845029]
[1642283192665,0.1201,3328.7,3327.2,54.43646143]
[1642283192863,0.1201,3329.0,3327.3,0.72174565]
[1642283193269,0.1201,3329.0,3328.8,1.53710484]
[1642283193465,2.004546,3329.1,3328.8,1.53710484]
[1642283193466,0.124646,3329.1,3328.8,1.53710484]
[1642283193764,0.124646,3329.1,3328.9,0.00568423]
[1642283194012,0.308396,3329.8,3329.0,0.72582856]
[1642283194412,0.1201,3329.7,3329.1,0.00454738]
[1642283194615,0.433,3329.6,3329.1,0.00454738]
[1642283194812,1.27073056,3330.0,3329.1,0.00454738]
[1642283194813,0.5531,3329.5,3329.1,0.00454738]
[1642283195015,0.433,3329.4,3329.1,0.00454738]
[1642283196618,0.383,3329.4,3329.1,0.00454738]
[1642283197017,0.1201,3329.9,3329.1,0.00454738]
[1642283197216,0.433,3329.7,3329.1,0.00454738]
[1642283197896,0.433,3329.7,3326.1,0.06240903]
[1642283197897,5.46959815,3329.2,3326.1,0.06240903]
[1642283198097,0.01228108,3328.2,3325.9,3.80865931]
[1642283198294,0.433,3328.1,3326.2,0.01648428]
[1642283198499,0.00847806,3328.0,3326.2,0.01648428]
[1642283198793,2.433,3328.0,3327.5,0.90299046]
[1642283198994,0.433,3328.0,3327.5,0.90299046]
[1642283199192,0.433,3328.0,3327.6,0.00852635]
[1642283199193,0.383,3328.0,3327.6,0.00852635]
[1642283201393,0.383,3328.0,3327.9,1.24231082]
[1642283201819,0.383,3328.0,3327.9,1.2491319]
[1642283202020,0.433,3328.7,3327.9,1.2491319]
[1642283202222,4.09465314,3328.9,3327.9,1.2491319]
[1642283202521,4.09465314,3328.9,3328.0,0.00625266]
[1642283203518,4.09465314,3328.9,3328.8,0.75869272]
[1642283204018,4.09465314,3328.9,3328.8,0.00170527]
[1642283204417,4.09465314,3328.9,3328.1,0.00568424]
[1642283204920,0.797412,3328.6,3328.1,0.00568424]
[1642283205118,4.09465314,3328.9,3328.1,0.00568424]
[1642283205769,0.1201,3328.8,3328.1,0.00568424]
[1642283205970,4.09465314,3328.9,3328.1,0.00568424]
[1642283206171,4.21475314,3328.9,3328.1,0.00568424]
[1642283206382,4.16475314,3328.9,3328.1,0.00568424]
[1642283206772,0.00830538,3328.8,3328.1,0.00568424]
[1642283206971,0.82505756,3328.6,3328.1,0.00568424]
[1642283207173,2.10416666,3328.8,3328.1,0.00568424]
[1642283208372,2.10416666,3328.8,3328.6,1.42896438]
[1642283208571,2.18042086,3328.8,3328.6,1.42896438]
[1642283208771,0.88161252,3328.7,3328.0,3.0]
[1642283209317,0.88161252,3328.7,3328.1,0.00568424]
[1642283209722,2.04703448,3328.8,3328.3,1.21574169]
[1642283210119,2.04703448,3328.8,3328.4,0.00397897]
[1642283210320,0.0762542,3328.8,3328.4,0.00397897]
[1642283210724,0.0762542,3328.8,3328.7,0.86495008]
[1642283210922,0.0762542,3328.8,3328.4,0.00397897]
[1642283211122,0.0762542,3328.8,3328.7,0.0022737]
[1642283211321,0.0762542,3328.8,3328.4,0.00397897]
[1642283211529,0.0262542,3328.8,3328.3,1.16972066]
[1642283211922,0.00170527,3328.7,3328.3,1.16972066]
[1642283212120,0.00170527,3328.7,3328.4,0.69338507]
[1642283212327,0.00113685,3328.6,3328.4,0.69338507]
[1642283212802,0.00170527,3328.7,3328.4,0.69338507]
[1642283213191,0.00113685,3328.6,3328.4,0.69338507]
[1642283213391,0.00113685,3328.6,3328.4,0.73787915]
[1642283213590,0.00170527,3328.7,3328.5,0.01658362]
[1642283213791,0.78085155,3328.9,3328.5,0.01658362]
[1642283213990,0.78085155,3328.9,3328.4,0.73787915]
[1642283214391,1.47351271,3329.7,3328.4,0.68901599]
[1642283214690,0.00170527,3328.8,3328.5,0.01091039]
[1642283214891,1.47351271,3329.7,3328.4,0.68901599]
[1642283215090,1.47351271,3329.7,3328.6,0.00113685]
[1642283215292,0.00454738,3329.6,3328.6,0.00113685]
[1642283215591,0.00397896,3329.5,3328.6,0.00113685]
[1642283215991,0.00341054,3329.4,3328.6,0.00113685]
[1642283216390,0.00284211,3329.3,3328.6,0.00113685]
[1642283216825,0.1201,3330.0,3328.6,0.00113685]
[1642283216826,0.00227369,3329.2,3328.6,0.00113685]
[1642283217220,0.08391737,3330.0,3328.6,0.00113685]
[1642283217618,0.00454738,3329.9,3328.5,0.00341054]
[1642283217819,0.12464738,3329.9,3328.5,0.00341054]
[1642283218021,0.00397896,3329.8,3328.5,0.00341054]
[1642283218421,0.00341054,3329.7,3328.5,0.00341054]
[1642283218819,0.433,3330.1,3328.5,0.00341054]
[1642283218820,0.12294211,3329.6,3329.5,1.40219612]
[1642283219221,0.00284211,3329.6,3328.7,0.009093]
[1642283219624,0.00227369,3329.5,3328.8,0.00170527]
[1642283220019,0.00170527,3329.4,3328.8,0.00170527]
[1642283220281,1.42920341,3329.6,3328.9,0.82626751]
[1642283220472,0.7507135,3330.1,3328.9,0.82626751]
[1642283220670,0.5531,3330.0,3329.0,0.0022737]
[1642283221473,0.00762433,3329.8,3329.0,0.0022737]
[1642283221673,0.5531,3329.7,3329.0,0.0022737]
[1642283221873,0.5531,3329.7,3329.6,0.65962004]
[1642283221874,0.55480527,3329.7,3329.6,0.65962004]
[1642283222079,0.00113684,3329.6,3329.0,0.0022737]
[1642283222274,0.1201,3329.5,3329.0,0.0022737]
[1642283222474,0.12123684,3329.6,3328.8,0.00341054]
[1642283223276,0.12123684,3329.6,3329.2,0.78225578]
[1642283223478,0.07123684,3329.6,3328.8,0.00341054]
[1642283224120,0.433,3329.5,3328.8,0.00341054]
[1642283224520,0.89811847,3329.4,3329.0,1.11755218]
[1642283224825,1.33111847,3329.4,3329.1,0.00170527]
[1642283225021,1.21101847,3329.4,3329.1,0.00170527]
[1642283226018,0.433,3329.4,3329.1,0.00170527]
[1642283227020,0.84776147,3329.3,3329.1,0.00170527]
[1642283227227,0.433,3329.4,3329.1,0.00170527]
[1642283230170,0.00113684,3329.6,3329.1,0.00170527]
[1642283230369,0.8887005,3329.2,3329.1,0.00170527]
[1642283230570,0.8887005,3329.2,3328.8,3.0]
[1642283230770,0.8887005,3329.2,3328.9,0.00113685]
[1642283230970,0.433,3329.4,3328.9,0.00113685]
[1642283231369,0.00113684,3329.3,3328.9,0.00113685]
[1642283231825,0.7571945,3329.2,3328.9,0.00113685]
[1642283234028,0.7571945,3329.2,3329.1,1.40999169]
[1642283235282,0.7571945,3329.2,3328.9,0.00113685]
[1642283235469,0.02775553,3329.1,3328.9,0.00113685]
[1642283235669,0.7571945,3329.2,3328.9,0.00113685]
[1642283236870,0.7571945,3329.2,3329.1,1.41688825]
[1642283237774,0.00113684,3329.3,3329.1,1.41688825]
[1642283238169,0.00113684,3329.3,3328.9,0.00113685]
[1642283238771,0.80342983,3329.2,3328.9,0.00113685]
[1642283239024,0.02586565,3329.1,3328.9,0.00113685]
[1642283239626,0.00113684,3329.3,3328.9,0.00113685]
[1642283240826,0.28413684,3329.4,3328.9,0.00113685]
[1642283241228,0.28413684,3329.4,3328.9,0.00227369]
[1642283241829,0.0058208,3329.2,3328.9,0.00227369]
[1642283242874,0.28413684,3329.4,3328.9,0.00227369]
[1642283244777,2.56967785,3329.3,3329.2,1.19842012]
[1642283246180,2.56967785,3329.5,3329.2,0.88641302]
[1642283246618,2.5708147,3329.5,3329.2,0.88641302]
[1642283247020,2.5708147,3329.5,3328.9,0.00227369]
[1642283247219,0.00587027,3329.4,3328.9,0.00227369]
[1642283247420,2.5708147,3329.5,3328.9,1.10005311]
[1642283247819,2.5708147,3329.5,3329.0,0.00170527]
[1642283248222,2.5708147,3329.5,3328.9,1.04948469]
[1642283248423,0.81402464,3329.3,3328.9,1.04948469]
[1642283248819,0.00113685,3329.2,3328.8,3.0]
[1642283249019,0.02268456,3329.1,3328.8,3.0]
[1642283249219,0.01768456,3329.1,3328.8,3.0]
[1642283249621,0.00113685,3329.2,3328.8,3.0]
[1642283252073,0.00113685,3329.2,3328.8,2.79074818]
[1642283252276,0.00456693,3329.1,3328.8,2.79074818]
[1642283252473,0.00113685,3329.2,3328.8,2.79074818]
[1642283253075,0.81194818,3328.9,3328.8,2.79074818]
[1642283253475,0.81194818,3328.9,3328.8,2.79188502]
[1642283253876,0.00113685,3329.2,3328.8,2.79188502]
[1642283255020,0.84042645,3328.9,3328.8,2.79188502]
[1642283255429,0.00113685,3329.2,3328.8,2.79188502]
[1642283256824,0.00113685,3329.2,3328.9,0.68142326]
[1642283258478,0.00113685,3329.2,3328.8,2.79188502]
[1642283258676,0.02073739,3329.1,3328.8,2.79188502]
[1642283258988,0.00113685,3329.2,3328.8,2.79188502]
[1642283260178,0.00113685,3329.2,3328.8,2.74188502]
[1642283262028,0.00113685,3329.2,3329.1,0.68955933]
[1642283262231,0.00113685,3329.2,3329.1,0.63955933]
[1642283262430,0.00113685,3329.2,3328.8,2.38144435]
[1642283263231,0.00113685,3329.2,3329.0,0.04519884]
[1642283265132,2.52078017,3329.5,3329.0,0.04519884]
[1642283265576,0.00113685,3329.4,3329.0,0.04519884]
[1642283265978,0.00113685,3329.4,3329.3,0.90118135]
[1642283266179,0.00113685,3329.4,3329.3,2.22716754]
[1642283266877,0.00113685,3329.4,3329.3,2.21800854]
[1642283267081,0.02123685,3329.7,3329.3,2.21800854]
[1642283267280,2.13103802,3330.1,3329.3,2.21800854]
[1642283267577,0.00113684,3329.6,3329.3,0.90118135]
[1642283268683,1.20644428,3329.5,3329.3,0.90118135]
[1642283268879,14.38573913,3329.4,3328.8,2.38144435]
[1642283269129,0.03895061,3329.3,3328.8,2.38144435]
[1642283269333,0.433,3329.2,3328.9,0.00284212]
[1642283269523,0.005311,3329.0,3328.9,0.00284212]
[1642283269725,2.34159797,3329.0,3328.9,0.00284212]
[1642283269923,0.438311,3329.0,3328.9,0.00284212]
[1642283270324,2.37571093,3329.0,3328.9,0.00284212]
[1642283270524,0.438311,3329.0,3328.9,0.00284212]
[1642283271928,0.438311,3329.0,3328.9,1.2609672]
[1642283272125,0.438311,3329.0,3328.9,0.00284212]
[1642283273569,1.67353912,3329.0,3328.9,0.00284212]
[1642283274372,0.438311,3329.0,3328.9,0.00284212]
[1642283276651,2.3663834,3329.0,3328.9,0.00284212]
[1642283276835,0.438311,3329.0,3328.9,0.00284212]
[1642283280876,5.14465608,3329.0,3328.9,0.00284212]
[1642283281278,4.438311,3329.0,3328.9,0.00284212]
[1642283281679,2.36614935,3329.0,3328.9,0.00284212]
[1642283282079,2.38520219,3329.0,3328.9,0.00284212]
[1642283282292,0.438311,3329.0,3328.9,0.00284212]
[1642283283287,1.39776257,3329.0,3328.9,0.00284212]
[1642283283679,5.59776257,3329.0,3328.9,0.00284212]
[1642283283880,5.47766257,3329.0,3328.9,0.00284212]
[1642283284128,0.438311,3329.0,3328.9,0.00284212]
[1642283285129,0.005311,3329.0,3328.9,0.00284212]
[1642283285526,2.57520349,3329.0,3328.3,0.009093]
[1642283285727,0.02295058,3328.9,3328.5,0.011027]
[1642283285928,0.02295058,3328.9,3328.7,0.01132]
[1642283286227,2.56989249,3329.0,3328.7,0.01132]
[1642283286637,2.56989249,3328.9,3328.5,0.011027]
[1642283286932,1.54365475,3328.8,3328.6,0.88120318]
[1642283287338,1.54365475,3328.8,3328.7,0.00113685]
[1642283287528,1.54365475,3328.8,3328.7,0.01197685]
[1642283288382,1.54174971,3328.8,3328.7,0.01197685]
[1642283290786,1.54174971,3328.8,3328.7,3.86197685]
[1642283291184,1.54174971,3328.8,3328.7,0.01197685]
[1642283292624,0.00113684,3329.6,3328.7,0.01197685]
[1642283292825,0.00113684,3329.6,3328.9,0.01094]
[1642283293030,0.00341054,3329.5,3328.9,0.01094]
[1642283293426,0.00284212,3329.4,3328.9,0.01094]
[1642283293827,0.00227369,3329.3,3328.9,0.01094]
[1642283294227,4.45536146,3329.7,3328.9,0.01094]
[1642283294228,1.14107516,3329.0,3328.9,0.01094]
[1642283294834,1.14107516,3329.0,3328.7,0.05061945]
[1642283297076,0.00397896,3329.6,3328.7,0.05061945]
[1642283297377,0.00341054,3329.5,3328.7,0.05061945]
[1642283297577,0.00341054,3329.5,3328.9,0.01089]
[1642283297785,0.00284212,3329.4,3328.9,0.01089]
[1642283298184,1.2538153,3329.1,3328.9,0.01089]
[1642283299727,1.24581146,3329.1,3328.8,0.06563273]
[1642283301429,1.24581146,3329.1,3328.9,0.010415]
[1642283301830,1.24581146,3329.1,3328.8,0.06563273]
[1642283302628,1.24581146,3329.1,3328.9,0.010454]
[1642283302879,1.24581146,3329.1,3328.8,0.06563273]
[1642283303275,1.24581146,3329.1,3328.7,0.01197685]
[1642283303481,1.24581146,3329.1,3329.0,0.010761]
[1642283303777,1.24694831,3329.1,3328.7,0.01197685]
[1642283305778,1.24694831,3329.1,3329.0,0.011415]
[1642283306377,0.00113685,3329.1,3329.0,0.011415]
[1642283308126,1.43613213,3329.1,3329.0,0.011415]
[1642283308327,0.02576341,3329.0,3328.7,0.01197685]
[1642283308927,0.00113685,3329.1,3328.9,0.01302]
[1642283313283,0.00113685,3329.1,3329.0,0.0363372]
[1642283314128,1.11932435,3329.2,3329.0,0.0363372]
[1642283314326,0.01283394,3329.8,3329.0,0.0363372]
[1642283314528,0.1201,3330.3,3329.2,0.010779]
[1642283314725,0.00341054,3329.7,3329.0,0.0363372]
[1642283314927,0.00341054,3329.7,3329.3,0.69175342]
[1642283315126,0.00284211,3329.6,3329.3,0.69175342]
[1642283315526,1.42615941,3329.5,3329.4,0.010242]
[1642283315727,0.00227369,3329.5,3329.4,0.010242]
[1642283315929,0.00227369,3329.5,3329.3,0.69175342]
[1642283316327,0.00170527,3329.4,3329.3,0.69175342]
[1642283316727,0.00170527,3329.4,3329.3,0.54175342]
[1642283318477,0.00170527,3329.4,3329.3,0.55171742]
[1642283320379,0.00170527,3329.4,3329.3,0.54175342]
[1642283323228,0.00170527,3329.4,3329.3,0.49175342]
[1642283329026,0.00170527,3329.4,3329.3,3.49175342]
[1642283330529,0.00170527,3329.4,3329.3,3.50118942]
[1642283333786,0.00170527,3329.4,3328.7,1.13627134]
[1642283333787,9.75,3329.3,3328.0,2.3056]
[1642283333990,0.01208776,3328.6,3327.7,3.9914]
[1642283334184,0.01524264,3328.5,3328.1,0.00568424]
[1642283334589,0.01524264,3328.5,3327.6,0.00852635]
[1642283334791,1.08718497,3327.7,3327.6,0.00852635]
[1642283334986,0.433,3328.8,3327.6,0.00852635]
[1642283335388,0.433,3328.8,3327.5,0.00909478]
[1642283335988,2.0,3329.1,3328.7,1.25354324]
[1642283336189,0.433,3329.1,3328.7,1.25354324]
[1642283336388,0.433,3329.1,3328.8,0.00170527]
[1642283336630,3.85567194,3329.3,3328.8,0.00170527]
[1642283336830,3.85567194,3329.3,3327.8,0.00738951]
[1642283337235,0.00113684,3329.3,3327.8,0.00738951]
[1642283337630,1.12237449,3328.5,3328.1,0.7505782]
[1642283338029,0.00113684,3329.3,3328.1,0.25569401]
[1642283338430,0.00568423,3329.2,3328.1,0.25569401]
[1642283338930,0.00511581,3329.1,3328.2,0.70853885]
[1642283339330,1.29474205,3329.0,3328.2,0.70853885]
[1642283339532,0.00454738,3329.0,3328.2,0.70853885]
[1642283339738,0.00397896,3328.9,3328.2,0.70853885]
[1642283340132,0.00341054,3328.8,3328.2,0.70853885]
[1642283340579,0.00284211,3328.7,3328.2,0.70853885]
[1642283340977,1.53334987,3329.2,3328.2,0.70853885]
[1642283340978,0.00227369,3328.6,3328.2,0.70853885]
[1642283341379,0.00170527,3328.5,3328.2,0.70853885]
[1642283341779,0.00113684,3328.4,3328.2,0.70853885]
[1642283342179,0.00568423,3329.2,3328.4,0.7505052]
[1642283342580,0.00511581,3329.1,3328.4,0.7505052]
[1642283342979,0.00454738,3329.0,3328.4,0.7505052]
[1642283343380,0.00397896,3328.9,3328.4,0.7505052]
[1642283343579,0.00397896,3328.9,3328.4,0.7005052]
[1642283343878,0.00341054,3328.8,3328.4,0.7005052]
[1642283344326,0.00284211,3328.7,3328.4,0.7005052]
[1642283344726,0.00227369,3328.6,3328.4,0.7005052]
[1642283345127,2.56809191,3329.3,3328.4,0.7005052]
[1642283345526,0.00397896,3329.2,3328.4,0.7005052]
[1642283345926,0.00341054,3329.1,3328.4,0.7005052]
[1642283346325,0.00284211,3329.0,3328.4,0.7005052]
[1642283346726,0.00227369,3328.9,3328.4,0.7005052]
[1642283346928,1.31366294,3328.8,3328.4,0.7005052]
[1642283347128,1.31536821,3328.8,3328.4,0.7005052]
[1642283347327,0.00113684,3328.7,3328.4,0.7005052]
[1642283347798,0.00409656,3329.4,3328.4,0.7005052]
[1642283347985,0.00568423,3329.5,3328.2,1.38405235]
[1642283348185,0.00454738,3329.3,3328.2,1.38405235]
[1642283348386,0.04738321,3328.8,3328.3,0.00113685]
[1642283348789,0.00113684,3328.7,3328.3,0.00113685]
[1642283350691,0.00113684,3328.7,3328.2,0.70853885]
[1642283350890,0.00170527,3328.6,3328.2,0.70853885]
[1642283351291,0.00113685,3328.5,3328.2,0.70853885]